bitfinex-derivatives/quotes_BTCF0:USTF0_20210108
["timestamp","ask_amount","ask_price","bid_price","bid_amount"]
[1610123373598,0.13632608,41100.0,41099.0,3.29427]
[1610123375100,0.13632608,41100.0,41099.0,0.08067]
[1610123376001,0.13632608,41100.0,41087.0,0.12676]
[1610123376602,0.13632608,41100.0,41088.0,0.00034255]
[1610123376901,0.13632608,41100.0,41087.0,0.12676]
[1610123377102,0.13632608,41100.0,41085.0,3.3456]
[1610123377503,0.13632608,41086.0,41085.0,3.3456]
[1610123379803,0.13632608,41086.0,41022.0,0.11076]
[1610123380003,0.13632608,41086.0,41049.0,3.4693]
[1610123380204,0.13632608,41086.0,41049.0,3.57362]
[1610123380504,0.13632608,41086.0,41050.0,0.0003426]
[1610123381604,0.10005,41108.0,41066.0,0.13632608]
[1610123381804,0.10005,41108.0,41066.0,0.23411608]
[1610123382004,0.10005,41108.0,41071.0,2.8817]
[1610123383106,1.5,41107.0,41066.0,0.09779]
[1610123383706,0.13632608,41067.0,41066.0,0.09779]
[1610123384010,0.10005,41108.0,41066.0,4.10563261]
[1610123384207,0.2971,41114.0,41067.0,0.00034261]
[1610123385011,0.2813,41116.0,41067.0,0.00034261]
[1610123385716,0.2813,41116.0,41073.0,0.13632608]
[1610123385912,0.2813,41116.0,41080.0,0.25]
[1610123386314,0.2813,41116.0,41080.0,0.33935]
[1610123386614,0.2813,41116.0,41085.0,0.403]
[1610123387415,0.2813,41116.0,41086.0,0.00034252]
[1610123387615,0.13632608,41087.0,41086.0,0.00034252]
[1610123388017,0.13632608,41087.0,41085.0,0.403]
[1610123388222,0.11254,41126.0,41085.0,0.403]
[1610123388418,0.11254,41126.0,41100.0,2.7364]
[1610123388618,1.02313088,41153.0,41100.0,2.7364]
[1610123388619,0.2879,41148.0,41100.0,2.85308]
[1610123389018,0.00029767,41147.0,41100.0,2.85308]
[1610123389218,0.11187,41147.0,41100.0,2.85308]
[1610123389720,0.13632608,41101.0,41100.0,2.85308]
[1610123390122,0.13632608,41101.0,41100.0,2.85342238]
[1610123390622,0.13632608,41101.0,41100.0,2.85308]
[1610123391122,0.13632608,41101.0,41100.0,2.8534224]
[1610123391724,0.13632608,41101.0,41100.0,2.85308]
[1610123392324,0.13632608,41101.0,41100.0,0.1170224]
[1610123392524,0.13632608,41101.0,41100.0,0.11668]
[1610123393126,0.13632608,41101.0,41100.0,0.36668]
[1610123397531,0.13632608,41101.0,41100.0,0.75748]
[1610123400234,0.13632608,41101.0,41100.0,0.75782238]
[1610123405540,0.11187,41147.0,41100.0,0.75782238]
[1610123405740,0.2879,41148.0,41110.0,0.13632608]
[1610123405940,0.00029759,41146.0,41110.0,0.25641608]
[1610123406141,0.00029759,41147.0,41113.0,0.4216]
[1610123406542,0.00029759,41145.0,41113.0,0.4216]
[1610123406743,0.00029759,41146.0,41113.0,0.4216]
[1610123406941,0.00029759,41147.0,41113.0,0.4216]
[1610123407242,0.00029759,41145.0,41113.0,0.4216]
[1610123407644,0.13632608,41114.0,41113.0,0.4216]
[1610123408645,0.13632608,41114.0,41113.0,0.42194091]
[1610123411947,0.13632608,41114.0,41113.0,0.00034091]
[1610123412547,0.13632608,41114.0,41111.0,0.00034091]
[1610123412748,0.13632608,41114.0,41113.0,0.00034091]
[1610123413150,0.13632608,41114.0,41112.0,0.00034091]
[1610123415751,0.13632608,41114.0,41113.0,0.13632608]
[1610123416151,3.395,41157.0,41113.0,0.13666693]
[1610123416851,0.47444435,41146.0,41114.0,0.00034085]
[1610123417652,0.13632608,41115.0,41114.0,0.00034085]
[1610123418352,0.10632608,41115.0,41114.0,0.00034085]
[1610123418555,0.47444435,41146.0,41114.0,0.00034085]
[1610123418955,0.47444435,41146.0,41120.0,4.0557]
[1610123419156,0.47444435,41146.0,41120.0,4.13586]
[1610123419455,0.47444435,41146.0,41128.0,2.9398]
[1610123419655,0.13632608,41129.0,41128.0,2.9398]
[1610123420154,0.13632608,41129.0,41128.0,2.94014089]
[1610123423362,0.47444435,41146.0,41128.0,2.94014089]
[1610123423863,0.47444435,41146.0,41140.0,0.13632608]
[1610123424064,0.47444435,41146.0,41144.0,0.5181]
[1610123424664,0.47444435,41146.0,41145.0,0.0003408]
[1610123424863,0.47444435,41146.0,41144.0,0.5181]
[1610123425263,0.47444435,41146.0,41145.0,0.0003408]
[1610123425864,0.61077043,41146.0,41145.0,0.0003408]
[1610123426065,0.61077043,41146.0,41144.0,0.5181]
[1610123427068,0.61077043,41146.0,41145.0,0.0003408]
[1610123432171,0.61077043,41146.0,41141.0,0.00034082]
[1610123432372,0.61077043,41146.0,41140.0,0.08905]
[1610123432373,0.61077043,41146.0,41145.0,0.00034084]
[1610123432571,0.61077043,41146.0,41142.0,0.00034084]
[1610123432772,0.61077043,41146.0,41140.0,0.08905]
[1610123432773,0.61077043,41146.0,41141.0,0.00034084]
[1610123433174,0.61077043,41146.0,41143.0,0.00034084]
[1610123433373,0.61077043,41146.0,41142.0,0.00034084]
[1610123433573,0.61077043,41146.0,41144.0,0.00034084]
[1610123433975,0.61077043,41146.0,41143.0,0.00034084]
[1610123434175,0.61077043,41146.0,41145.0,0.00034084]
[1610123434378,0.61077043,41146.0,41144.0,0.00034082]
[1610123434576,0.61077043,41146.0,41145.0,0.00034082]
[1610123435175,0.61077043,41146.0,41141.0,0.00034082]
[1610123435375,0.61077043,41146.0,41145.0,0.00034082]
[1610123435780,0.61077043,41146.0,41142.0,0.00034082]
[1610123435977,0.61077043,41146.0,41145.0,0.00034082]
[1610123436178,0.61077043,41146.0,41141.0,0.00034082]
[1610123436579,0.61077043,41146.0,41145.0,0.00034082]
[1610123436879,0.61077043,41146.0,41142.0,0.00034082]
[1610123437180,0.61077043,41146.0,41141.0,0.00034082]
[1610123437378,0.61077043,41146.0,41143.0,0.00034085]
[1610123437578,0.61077043,41146.0,41142.0,0.00034085]
[1610123437779,0.61077043,41146.0,41144.0,0.00034085]
[1610123438180,0.61077043,41146.0,41143.0,0.00034087]
[1610123438386,0.61077043,41146.0,41132.0,0.00034087]
[1610123438581,0.61077043,41146.0,41144.0,0.00034087]
[1610123438981,0.61077043,41146.0,41133.0,0.00034087]
[1610123439181,0.61077043,41146.0,41132.0,0.00034089]
[1610123439383,0.0731,41145.0,41134.0,0.00034089]
[1610123439582,0.61077043,41146.0,41133.0,0.00034089]
[1610123439784,0.13632608,41134.0,41133.0,0.00034089]
[1610123439982,0.13632608,41134.0,41132.0,0.00034089]
[1610123440184,0.13632608,41134.0,41133.0,0.00034087]
[1610123440683,0.13632608,41134.0,41132.0,0.00034087]
[1610123440983,0.13632608,41134.0,41133.0,0.00034087]
[1610123441482,0.13632608,41134.0,41132.0,0.00034087]
[1610123441986,0.13632608,41134.0,41133.0,0.00034087]
[1610123442285,0.13632608,41134.0,41132.0,0.00034087]
[1610123442485,0.13632608,41134.0,41133.0,0.00034087]
[1610123443084,0.13632608,41134.0,41132.0,0.00034087]
[1610123448192,0.13632608,41134.0,41132.0,0.03009683]
[1610123448992,0.13632608,41134.0,41133.0,0.5376]
[1610123449493,0.13632608,41134.0,41133.0,0.56769379]
[1610123449993,0.13632608,41134.0,41133.0,0.03009379]
[1610123450295,0.13632608,41134.0,41132.0,0.03009423]
[1610123450493,0.13632608,41134.0,41133.0,0.03009289]
[1610123450692,0.13632608,41134.0,41131.0,0.09829]
[1610123450693,0.13632608,41134.0,41132.0,0.03009269]
[1610123451092,0.13632608,41134.0,41133.0,0.03009351]
[1610123451593,0.13632608,41134.0,41131.0,0.09829]
[1610123451594,0.13632608,41134.0,41132.0,0.03009374]
[1610123451793,0.13632608,41134.0,41133.0,0.1664199]
[1610123451994,0.13632608,41134.0,41133.0,0.13632608]
[1610123452395,0.13632608,41134.0,41133.0,0.16641895]
[1610123456395,0.13632608,41134.0,41133.0,0.74811895]
[1610123461299,0.13632608,41134.0,41133.0,0.61179287]
[1610123462604,0.13632608,41134.0,41133.0,0.58204083]
[1610123462801,0.13632608,41134.0,41133.0,0.00034083]
[1610123463503,0.13632608,41134.0,41132.0,0.00034083]
[1610123463702,0.13632608,41134.0,41133.0,0.00034085]
[1610123464203,0.13632608,41134.0,41132.0,0.00034527]
[1610123464403,0.13632608,41134.0,41133.0,0.00034527]
[1610123464903,0.13632608,41134.0,41132.0,0.00034527]
[1610123465206,0.13632608,41134.0,41133.0,0.00034527]
[1610123465804,0.13632608,41134.0,41132.0,0.00034527]
[1610123466004,0.13632608,41134.0,41133.0,0.00034527]
[1610123466606,0.13632608,41134.0,41132.0,0.00034527]
[1610123466806,0.13632608,41134.0,41133.0,0.00034527]
[1610123467307,0.13632608,41134.0,41132.0,0.00034527]
[1610123467808,1.49965473,41133.0,41131.0,0.09829]
[1610123468007,1.49965473,41133.0,41121.0,2.9773]
[1610123468307,1.49965473,41133.0,41132.0,0.00034525]
[1610123469007,1.49965473,41133.0,41131.0,0.00034525]
[1610123469309,1.49965473,41133.0,41132.0,0.00034525]
[1610123469709,1.49965473,41133.0,41131.0,0.00034525]
[1610123470010,1.49965473,41132.0,41130.0,0.35284]
[1610123470608,1.49965473,41132.0,41131.0,0.00034526]
[1610123473115,1.49965473,41133.0,41131.0,0.00034526]
[1610123473312,1.49965473,41132.0,41131.0,0.00034526]
[1610123474914,1.58546473,41132.0,41130.0,0.25]
[1610123475214,0.67776928,41131.0,41130.0,0.25]
[1610123475515,2.67022401,41131.0,41130.0,0.25]
[1610123475832,5.93212401,41131.0,41130.0,0.15034537]
[1610123476039,7.86016512,41131.0,41130.0,0.15034537]
[1610123476215,8.86016512,41131.0,41130.0,0.15034537]
[1610123476416,8.86016512,41131.0,41130.0,0.0845]
[1610123476619,10.52222341,41131.0,41130.0,0.0845]
[1610123476819,10.52222341,41131.0,41081.0,2.9415]
[1610123477017,11.55820097,41131.0,41081.0,2.9415]
[1610123477218,11.55820097,41131.0,41082.0,0.00034548]
[1610123477420,0.53218088,41111.0,41082.0,0.00034548]
[1610123477620,2.03182972,41110.0,41082.0,0.00034548]
[1610123477818,3.1254,41106.0,41082.0,0.00034548]
[1610123478022,0.13632608,41083.0,41082.0,0.00034548]
[1610123478321,4.59298081,41083.0,41050.0,0.0301269]
[1610123478520,4.59298081,41083.0,41082.0,0.00034558]
[1610123478721,4.59298081,41083.0,41051.0,0.03013109]
[1610123478920,4.59298081,41083.0,41049.0,0.11858]
[1610123479121,3.09332608,41083.0,41049.0,0.11858]
[1610123479320,3.09332608,41083.0,41052.0,0.00034563]
[1610123479522,3.09332608,41083.0,41050.0,0.00034563]
[1610123479720,1.49965473,41082.0,41053.0,0.00034566]
[1610123480020,0.13632608,41054.0,41051.0,0.00034566]
[1610123480220,0.13632608,41054.0,41049.0,0.11858]
[1610123481925,0.13632608,41054.0,41050.0,3.8719]
[1610123482123,0.13632608,41054.0,41050.0,3.87224572]
[1610123482327,0.01482283,41098.0,41051.0,0.00034569]
[1610123482525,0.2866,41096.0,41051.0,0.00034569]
[1610123482725,0.2866,41096.0,41062.0,2.8711]
[1610123482926,0.45516126,41113.0,41062.0,0.09964]
[1610123483126,0.01481824,41117.0,41074.0,3.5894]
[1610123483328,0.2839,41114.0,41074.0,3.5894]
[1610123483526,0.2839,41114.0,41074.0,3.7109]
[1610123483726,0.2839,41114.0,41075.0,0.0003455]
[1610123483928,0.13632608,41076.0,41075.0,0.0003455]
[1610123484128,0.2839,41114.0,41075.0,0.0003455]
[1610123484428,0.01480593,41135.0,41075.0,0.0003455]
[1610123484827,0.52788272,41138.0,41075.0,0.0003455]
[1610123484828,0.01480487,41137.0,41075.0,0.0003455]
[1610123485129,0.01480514,41136.0,41075.0,0.0003455]
[1610123485327,0.72480319,41137.0,41075.0,0.0003455]
[1610123485328,0.2849,41137.0,41075.0,0.0003455]
[1610123486028,0.2849,41137.0,41092.0,0.13632608]
[1610123486229,0.2849,41137.0,41092.0,0.25970608]
[1610123486429,0.2849,41137.0,41093.0,0.00034538]
[1610123487531,0.2849,41137.0,41095.0,3.7088]
[1610123487732,0.2849,41137.0,41093.0,0.00034538]
[1610123487933,0.0148017,41144.0,41104.0,3.821]
[1610123488134,0.08471,41145.0,41109.0,0.13632608]
[1610123488435,0.01480065,41153.0,41110.0,0.00034529]
[1610123488644,0.01479971,41157.0,41110.0,0.00034529]
[1610123489034,0.01479876,41158.0,41110.0,0.00034529]
[1610123489334,0.01479949,41159.0,41110.0,0.00034529]
[1610123489539,0.45453429,41160.0,41110.0,0.00034529]
[1610123489834,0.01479851,41162.0,41110.0,0.00034529]
[1610123490034,0.01479851,41162.0,41120.0,0.13632608]
[1610123490339,0.01479851,41162.0,41120.0,0.25484608]
[1610123490736,0.01479938,41161.0,41120.0,0.25484608]
[1610123490937,0.45453129,41162.0,41120.0,0.25484608]
[1610123491136,0.45453129,41162.0,41121.0,0.00034519]
[1610123491336,0.01479931,41162.0,41121.0,0.00034519]
[1610123491539,0.31400011,41163.0,41121.0,0.00034519]
[1610123491938,0.13632608,41122.0,41121.0,0.00034519]
[1610123492738,0.13632608,41122.0,41120.0,0.11852]
[1610123492938,0.13632608,41122.0,41104.0,0.09976]
[1610123493140,0.13632608,41122.0,41105.0,0.00034528]
[1610123493341,0.13632608,41122.0,41105.0,0.11580528]
[1610123493542,0.13632608,41122.0,41105.0,0.11546]
[1610123494143,0.13632608,41106.0,41105.0,0.11546]
[1610123494641,0.13632608,41106.0,41092.0,0.12338]
[1610123494845,0.13632608,41106.0,41074.0,0.1215]
[1610123495042,0.13632608,41106.0,41073.0,3.336]
[1610123495242,0.13632608,41106.0,41074.0,0.00034543]
[1610123495445,0.13632608,41106.0,41074.0,0.12061543]
[1610123495945,0.13632608,41106.0,41075.0,0.00034543]
[1610123496145,0.13632608,41076.0,41075.0,0.00034543]
[1610123496744,0.12733,41113.0,41075.0,0.00034543]
[1610123498148,0.13632608,41076.0,41075.0,0.00034543]
[1610123499249,0.12733,41113.0,41075.0,0.00034543]
[1610123499450,0.2909,41121.0,41075.0,0.00034543]
[1610123499748,0.288,41122.0,41076.0,3.5952]
[1610123499953,0.288,41122.0,41077.0,0.00034539]
[1610123500254,0.288,41122.0,41086.0,0.00034539]
[1610123500451,0.288,41122.0,41086.0,0.11702539]
[1610123501156,0.288,41122.0,41087.0,0.00034539]
[1610123501354,1.5,41121.0,41087.0,0.00034539]
[1610123501753,1.60367,41121.0,41087.0,0.00034539]
[1610123502153,0.13632608,41088.0,41087.0,0.00034539]
[1610123507458,0.13632608,41088.0,41086.0,0.11668]
[1610123507660,0.13632608,41088.0,41074.0,0.12027]
[1610123507861,0.13632608,41088.0,41075.0,0.00034551]
[1610123508063,5.17822,41111.0,41075.0,0.10522551]
[1610123508262,5.17822,41111.0,41075.0,0.10488]
[1610123508463,5.17822,41111.0,41076.0,0.00034551]
[1610123510165,0.13632608,41077.0,41076.0,0.00034551]
[1610123510564,3.67822,41111.0,41076.0,0.00034551]
[1610123510764,0.10367,41121.0,41076.0,0.00034551]
[1610123510969,0.52750746,41132.0,41078.0,4.0475]
[1610123511168,1.52745526,41137.0,41078.0,4.0475]
[1610123511368,0.2795,41131.0,41079.0,0.03011777]
[1610123511768,1.0,41137.0,41079.0,0.03011777]
[1610123512166,0.12763,41148.0,41108.0,0.13632608]
[1610123512368,0.12763,41148.0,41108.0,0.21427608]
[1610123512666,0.12763,41148.0,41109.0,0.00034525]
[1610123514173,0.13632608,41110.0,41109.0,0.00034525]
[1610123520072,0.13632608,41090.0,41089.0,0.00034536]
[1610123520273,0.13632608,41090.0,41089.0,0.0301113]
[1610123520673,0.13632608,41090.0,41077.0,0.03011187]
[1610123520974,0.13632608,41090.0,41089.0,0.03011288]
[1610123521172,0.13632608,41090.0,41078.0,0.03011584]
[1610123521374,0.13632608,41090.0,41089.0,0.0301158]
[1610123521575,0.13632608,41090.0,41079.0,0.0301168]
[1610123521975,0.13632608,41090.0,41089.0,0.03011764]
[1610123522176,0.13632608,41090.0,41080.0,0.0301178]
[1610123522475,0.13632608,41090.0,41089.0,0.00034544]
[1610123522675,0.13632608,41090.0,41084.0,0.11686]
[1610123523277,0.13632608,41090.0,41085.0,0.03011855]
[1610123524593,0.13632608,41090.0,41085.0,0.00034544]
[1610123524800,0.13632608,41090.0,41086.0,0.00034685]
[1610123525380,0.13632608,41090.0,41076.0,0.03012523]
[1610123525580,0.13632608,41090.0,41087.0,0.00034688]
[1610123525781,0.23155608,41090.0,41077.0,0.00034688]
[1610123526186,0.09523,41090.0,41088.0,0.00034688]
[1610123526490,0.09523,41090.0,41066.0,0.09072]
[1610123526491,0.09523,41090.0,41068.0,0.00034691]
[1610123526683,0.09523,41090.0,41089.0,0.00034691]
[1610123526894,0.09523,41090.0,41069.0,0.00034691]
[1610123527087,0.09523,41090.0,41089.0,0.00034691]
[1610123527482,0.09523,41090.0,41070.0,0.00034691]
[1610123527783,0.09523,41090.0,41089.0,0.00034691]
[1610123528082,0.13632608,41072.0,41071.0,0.00034691]
[1610123528282,0.13632608,41072.0,41069.0,0.0297819]
[1610123528482,0.13632608,41072.0,41071.0,0.02978205]
[1610123528783,0.13632608,41072.0,41066.0,0.09072]
[1610123528784,0.13632608,41072.0,41070.0,0.03012964]
[1610123529083,0.13632608,41072.0,41071.0,0.03012989]
[1610123529284,0.13632608,41072.0,41071.0,0.00034691]
[1610123529488,0.13632608,41072.0,41067.0,0.03013172]
[1610123529785,0.13632608,41072.0,41071.0,0.00034694]
[1610123529985,0.13632608,41072.0,41068.0,0.00034694]
[1610123530285,0.13632608,41072.0,41067.0,0.03013172]
[1610123530786,0.13632608,41072.0,41068.0,0.00034694]
[1610123531186,0.13632608,41072.0,41070.0,0.00034694]
[1610123531386,0.13632608,41072.0,41069.0,0.00034694]
[1610123531586,0.13632608,41072.0,41071.0,0.00034694]
[1610123531987,0.13632608,41072.0,41070.0,0.00034694]
[1610123532187,0.13632608,41072.0,41071.0,0.00034694]
[1610123532794,0.13632608,41072.0,41067.0,0.03013172]
[1610123533001,0.13632608,41072.0,41071.0,0.00034692]
[1610123533198,0.13632608,41072.0,41067.0,0.02978478]
[1610123533199,0.13632608,41072.0,41068.0,0.0003469]
[1610123533690,0.13632608,41072.0,41067.0,0.03013167]
[1610123534090,0.13632608,41072.0,41071.0,0.00034689]
[1610123534289,0.13632608,41072.0,41068.0,0.00034689]
[1610123534492,0.13632608,41072.0,41067.0,0.03013167]
[1610123534998,0.13632608,41072.0,41068.0,0.00034689]
[1610123535292,0.13632608,41072.0,41067.0,0.03013167]
[1610123535692,0.13632608,41072.0,41069.0,0.00034689]
[1610123535893,0.13632608,41072.0,41068.0,0.00034689]
[1610123536093,0.13632608,41072.0,41067.0,0.03013167]
[1610123536394,0.13632608,41072.0,41069.0,0.00034689]
[1610123536594,0.13632608,41072.0,41068.0,0.00034689]
[1610123536894,0.13632608,41072.0,41070.0,0.00034689]
[1610123537394,0.13632608,41072.0,41071.0,0.00034691]
[1610123538498,0.13632608,41072.0,41067.0,0.00034694]
[1610123538794,0.13632608,41072.0,41071.0,0.00034694]
[1610123538996,0.13632608,41072.0,41067.0,0.00034694]
[1610123539397,0.13632608,41072.0,41071.0,0.00034694]
[1610123539598,0.13632608,41072.0,41068.0,0.00034696]
[1610123539896,0.13632608,41072.0,41067.0,0.00034696]
[1610123540095,0.13632608,41072.0,41069.0,0.00034696]
[1610123540295,0.13632608,41072.0,41068.0,0.00034696]
[1610123540697,0.13632608,41072.0,41070.0,0.00034696]
[1610123540897,0.13632608,41072.0,41069.0,0.00034696]
[1610123541096,0.13632608,41072.0,41071.0,0.00034696]
[1610123541497,0.13632608,41072.0,41070.0,0.00034696]
[1610123541697,0.13632608,41072.0,41071.0,0.00034696]
[1610123542198,0.13632608,41072.0,41067.0,0.00034694]
[1610123544800,0.13632608,41072.0,41067.0,0.0301315]
[1610123546202,0.13632608,41072.0,41069.0,3.1442]
[1610123546702,0.13632608,41072.0,41070.0,0.03012865]
[1610123549504,0.13632608,41072.0,41067.0,0.03012822]
[1610123549906,0.13632608,41072.0,41071.0,0.03012809]
[1610123550104,0.13632608,41072.0,41068.0,0.03012824]
[1610123550406,0.13632608,41072.0,41066.0,0.09072]
[1610123550407,0.13632608,41072.0,41067.0,0.03012799]
[1610123550605,0.13632608,41072.0,41069.0,0.03012862]
[1610123550905,0.13632608,41072.0,41068.0,0.03012916]
[1610123551104,0.13632608,41072.0,41067.0,0.03012941]
[1610123551407,0.13632608,41072.0,41069.0,0.03012952]
[1610123551606,0.13632608,41072.0,41068.0,0.03012941]
[1610123552006,0.13632608,41072.0,41067.0,0.03012973]
[1610123552306,0.13632608,41072.0,41069.0,0.03012989]
[1610123552508,0.13632608,41072.0,41068.0,0.03013003]
[1610123552708,0.13632608,41072.0,41070.0,0.03013212]
[1610123553006,0.13632608,41072.0,41069.0,0.03013252]
[1610123553207,0.13632608,41072.0,41071.0,0.03013347]
[1610123553706,0.13632608,41072.0,41071.0,0.03013371]
[1610123554309,0.13632608,41072.0,41067.0,0.03013469]
[1610123554509,0.13632608,41072.0,41066.0,0.09072]
[1610123554510,0.13632608,41072.0,41071.0,0.03013495]
[1610123554909,0.13632608,41072.0,41068.0,0.03013473]
[1610123555113,0.13632608,41072.0,41071.0,0.0301346]
[1610123555309,0.13632608,41072.0,41067.0,0.0301346]
[1610123555712,0.13632608,41072.0,41071.0,0.03013556]
[1610123555911,0.13632608,41072.0,41068.0,0.03013516]
[1610123556210,0.13632608,41072.0,41067.0,0.03013524]
[1610123556412,0.13632608,41072.0,41069.0,0.03013416]
[1610123556613,0.13632608,41072.0,41068.0,0.03013432]
[1610123557011,0.13632608,41072.0,41066.0,0.09072]
[1610123557012,0.13632608,41072.0,41067.0,0.03013423]
[1610123557212,0.13632608,41072.0,41069.0,0.03013476]
[1610123557413,0.13632608,41072.0,41066.0,0.09072]
[1610123557414,0.13632608,41072.0,41068.0,0.0301345]
[1610123557815,0.13632608,41072.0,41067.0,0.03013244]
[1610123558013,0.13632608,41072.0,41069.0,0.03013214]
[1610123558214,0.13632608,41072.0,41068.0,0.03013106]
[1610123558615,0.13632608,41072.0,41070.0,0.03013114]
[1610123558914,0.13632608,41072.0,41069.0,0.03013114]
[1610123559115,0.13632608,41072.0,41071.0,0.03013088]
[1610123559316,0.13632608,41072.0,41070.0,0.03012964]
[1610123559515,0.13632608,41072.0,41071.0,0.0301271]
[1610123559917,0.13632608,41072.0,41071.0,3.1365271]
[1610123560118,0.13632608,41072.0,41071.0,3.1064]
[1610123560315,0.13632608,41072.0,41071.0,3.33241845]
[1610123560515,0.13632608,41072.0,41071.0,0.22601845]
[1610123560816,0.13632608,41072.0,41071.0,0.16645481]
[1610123561015,0.23861834,41072.0,41071.0,0.16645481]
[1610123561415,0.23861834,41072.0,41071.0,0.03012873]
[1610123561916,0.23861834,41072.0,41067.0,0.03013054]
[1610123562318,0.23861834,41072.0,41071.0,0.03013045]
[1610123562517,0.23861834,41072.0,41068.0,0.03013077]
[1610123562719,0.23861834,41072.0,41067.0,0.03013027]
[1610123563117,0.23861834,41072.0,41069.0,0.03013034]
[1610123563317,0.23861834,41072.0,41068.0,0.03013007]
[1610123563519,0.23861834,41072.0,41067.0,0.03013002]
[1610123563918,0.23861834,41072.0,41069.0,0.03012999]
[1610123564118,0.23861834,41072.0,41068.0,0.03013019]
[1610123564319,0.23861834,41072.0,41070.0,0.03013044]
[1610123564520,0.23861834,41072.0,41069.0,0.03013081]
[1610123564820,0.23861834,41072.0,41071.0,0.03013077]
[1610123565222,0.23861834,41072.0,41070.0,0.03013121]
[1610123565520,0.23861834,41072.0,41071.0,0.03013103]
[1610123565921,0.23861834,41072.0,41067.0,0.03013117]
[1610123566122,0.23861834,41072.0,41071.0,0.03013138]
[1610123566421,0.23861834,41072.0,41068.0,0.0301316]
[1610123566621,0.23861834,41072.0,41071.0,0.03013193]
[1610123566920,0.23861834,41072.0,41067.0,0.03013189]
[1610123567325,0.23861834,41072.0,41071.0,0.03013265]
[1610123567522,0.23861834,41072.0,41068.0,0.03013286]
[1610123567724,0.23861834,41072.0,41067.0,0.03013264]
[1610123568126,0.23861834,41072.0,41069.0,0.03013257]
[1610123568325,0.23861834,41072.0,41068.0,0.03013322]
[1610123568526,0.23861834,41072.0,41067.0,0.03013452]
[1610123568825,0.23861834,41072.0,41069.0,0.03013457]
[1610123569024,0.23861834,41072.0,41068.0,0.03013556]
[1610123569427,0.23861834,41072.0,41070.0,0.03013499]
[1610123569625,0.23861834,41072.0,41066.0,0.09072]
[1610123569626,0.23861834,41072.0,41069.0,0.03013588]
[1610123569827,0.23861834,41072.0,41071.0,0.02978895]
[1610123570029,0.23861834,41072.0,41071.0,0.03013594]
[1610123570230,0.23861834,41072.0,41070.0,0.02978892]
[1610123570429,0.23861834,41072.0,41071.0,0.03013595]
[1610123571031,0.23861834,41072.0,41067.0,0.03013631]
[1610123576835,0.23861834,41072.0,41067.0,0.000347]
[1610123577034,0.23861834,41072.0,41068.0,0.00034705]
[1610123577641,0.23861834,41072.0,41054.0,0.09361]
[1610123577840,0.23861834,41072.0,41055.0,0.0301404]
[1610123578435,0.13632608,41056.0,41055.0,0.0301404]
[1610123585651,3.35312608,41056.0,41055.0,0.00034705]
[1610123586350,3.35312608,41056.0,41028.0,0.08973769]
[1610123586550,0.13632608,41029.0,41028.0,0.08973769]
[1610123586951,0.13632608,41029.0,41004.0,0.08974258]
[1610123587152,0.13632608,41029.0,41011.0,2.9115]
[1610123587352,0.13632608,41029.0,41028.0,0.03014396]
[1610123587651,0.13632608,41029.0,41028.0,0.11307]
[1610123587852,0.13632608,41029.0,41028.0,0.14321486]
[1610123588454,0.2717,41057.0,41028.0,0.14321486]
[1610123588455,0.13632608,41040.0,41028.0,3.05434094]
[1610123588854,0.13632608,41040.0,41029.0,0.03014333]
[1610123589355,0.2872,41071.0,41029.0,0.08973947]
[1610123589553,0.2872,41071.0,41030.0,0.1569]
[1610123589954,0.2872,41071.0,41031.0,0.03013713]
[1610123590654,0.13632608,41038.0,41037.0,0.13632608]
[1610123590857,0.13632608,41038.0,41031.0,0.03013713]
[1610123591055,0.13632608,41038.0,41029.0,0.08973369]
[1610123591259,0.13632608,41038.0,41032.0,0.03013778]
[1610123591559,0.13632608,41038.0,41029.0,0.08973251]
[1610123591758,0.13632608,41038.0,41033.0,0.0301362]
[1610123591957,0.13632608,41038.0,41030.0,0.03013618]
[1610123592256,0.13632608,41038.0,41034.0,0.03013701]
[1610123592557,0.2872,41071.0,41031.0,0.03013704]
[1610123592758,0.2872,41071.0,41029.0,0.05959614]
[1610123592759,0.2872,41071.0,41052.0,0.53]
[1610123592959,0.2861,41076.0,41052.0,0.1266]
[1610123593159,0.2861,41076.0,41054.0,3.8665]
[1610123593663,0.2861,41076.0,41055.0,0.0301358]
[1610123594765,0.13632608,41056.0,41055.0,0.0301358]
[1610123599568,0.13632608,41056.0,41053.0,0.03013636]
[1610123599768,0.13632608,41056.0,41047.0,0.13632608]
[1610123599969,0.13632608,41056.0,41051.0,0.0595858]
[1610123600173,0.13632608,41056.0,41048.0,0.03013329]
[1610123600369,0.13632608,41056.0,41047.0,0.13632608]
[1610123600370,0.13632608,41056.0,41052.0,0.03013329]
[1610123600869,0.13632608,41056.0,41052.0,0.12565]
[1610123601171,0.13632608,41056.0,41053.0,0.030133]
[1610123634504,0.10229226,41072.0,41053.0,0.030133]
[1610123635005,0.10229226,41072.0,41068.0,0.13632608]
[1610123635207,0.10229226,41072.0,41068.0,0.24712608]
[1610123635502,0.10229226,41072.0,41071.0,3.3452]
[1610123636003,0.10229226,41072.0,41071.0,3.37533638]
[1610123636502,0.10229226,41072.0,41071.0,0.03013638]
[1610123636703,0.10229226,41072.0,41069.0,0.03013387]
[1610123636903,0.13632608,41070.0,41069.0,0.03013387]
[1610123637103,0.13632608,41070.0,41068.0,0.24712608]
[1610123637310,0.13632608,41070.0,41069.0,0.03013239]
[1610123637504,0.10229226,41072.0,41069.0,0.03013239]
[1610123642113,0.10229226,41072.0,41068.0,0.24712608]
[1610123642317,0.10229226,41072.0,41071.0,3.0578]
[1610123642714,0.10229226,41072.0,41071.0,3.08792385]
[1610123647821,0.10229226,41072.0,41071.0,0.03012385]
[1610123648322,0.10229226,41072.0,41069.0,0.03012299]
[1610123648521,0.10229226,41072.0,41071.0,0.03012502]
[1610123648922,0.23861834,41072.0,41071.0,0.4176]
[1610123649122,0.23861834,41072.0,41071.0,0.44772458]
[1610123650325,0.10229226,41072.0,41071.0,0.44772458]
[1610123651021,0.10229226,41072.0,41071.0,0.58405066]
[1610123655127,0.10229226,41072.0,41071.0,0.16645066]
[1610123656129,0.10229226,41072.0,41071.0,0.13666575]
[1610123657130,0.23861834,41072.0,41071.0,0.13666575]
[1610123657332,0.23861834,41072.0,41071.0,0.16644592]
[1610123659132,0.23861834,41072.0,41071.0,0.03011984]
[1610123659735,0.23861834,41072.0,41069.0,0.03012184]
[1610123659935,0.23861834,41072.0,41071.0,0.00033956]
[1610123660134,0.23861834,41072.0,41070.0,0.00033958]
[1610123660335,0.23861834,41072.0,41071.0,0.0003396]
[1610123660936,0.23861834,41072.0,41069.0,0.0003396]
[1610123661236,0.23861834,41072.0,41071.0,0.0003396]
[1610123661436,0.23861834,41072.0,41070.0,0.0003396]
[1610123661735,0.23861834,41072.0,41071.0,0.00033958]
[1610123661935,0.23861834,41072.0,41068.0,0.1108]
[1610123661936,0.23861834,41072.0,41069.0,0.03012528]
[1610123662336,0.23861834,41072.0,41071.0,0.00033958]